Cogmind - Beta 15 @@@ ROGUE MODE // 2025.08.19 @ 01:21:20 Player: H3-RMN Result: Destroyed by Quarantine Guard with Hypercooled Linear Accelerator Performance ------------- Evolutions (7) 3500 Regions Visited (23) 4600 Robots Destroyed (370) 1850 Value Destroyed (10509) 10509 Prototype IDs (47) 940 Alien Tech Used (1) 200 Bonus (8009) 8009 TOTAL SCORE: 29608 Bonus ------- Triggered High Security 500 High Alert Combat Kills 3268 Follower Combat Kills 2280 Entered DSFs 1000 Network Hubs Disabled 200 Registered with UFD 300 Met Optimus in HQ 500 Friendly Fire -39 Cogmind --------- Core Integrity 0/1300 Matter 300/300 Energy 100/100 System Corruption 7% Temperature Cool (0) Movement Core (50) Location -3/Quarantine Parts ------- > --- POWER (2) -------- (None) > --- PROPULSION (10) -- (None) > --- UTILITY (7) ------ Advanced Signal Interpreter Jamming Amplifier Experimental Hacking Suite > --- WEAPON (2) ------- (None) > --- INVENTORY (5) ---- Huge Storage Unit Advanced Transmission Jammer Subatomic Replicator Terrabomb Peak State ------------ > --- POWER ------------ Light Antimatter Reactor Light Particle Reactor > --- PROPULSION ------- Improved Surge Thruster Field Propulsion Drive Q-thruster Q-thruster Impulse Thruster Array Impulse Thruster Array Impulse Thruster Array > --- UTILITY ---------- Large Storage Unit Advanced Gravity Neutralizer Advanced Signal Interpreter Jamming Amplifier Centrium Light Armor Plating Experimental Hacking Suite Authchip [Propulsion] > --- WEAPON ----------- Compact HERF Cannon Force Lance > --- INVENTORY -------- Light Antimatter Reactor Biometal Medium Treads Impulse Thruster Q-thruster Huge Storage Unit Deep Structural Scanner Experimental Sensor Array Advanced Transmission Jammer Advanced Corruption Screen Terrabomb Heavy Hardcell Cannon CPS Tube Plasma Sword Enhanced Force Lance [Rating: 155] Favorites ----------- Power Heavy Ion Engine Engine Heavy Ion Engine Power Core Micro Fission Core Reactor Light Particle Reactor Propulsion Armored Wheel Treads Armored Treads Wheel Armored Wheel Hover Unit Gravmag System Flight Unit Improved VTOL Module Utility Huge Storage Unit Device Graphene Brace Storage Huge Storage Unit Processor Advanced Signal Interpreter Hackware Hacking Suite Protection Hardened Heavy Armor Plating Weapon Enhanced Autogun Energy Gun Beamcaster Energy Cannon EM Pulse Cannon Ballistic Gun Enhanced Autogun Ballistic Cannon Heavy Assault Cannon Launcher Shock Bomb Launcher Special Weapon CPS Tube Impact Weapon Shock Maul Slashing Weapon Makeshift Sword Piercing Weapon Force Lance Special Melee Weapon Advanced Datajack Build | -11 -10 -10 -9 -9 -8 -8 -8 -8 -6 -6 -6 -6 -6 -5 -5 -5 -5 -4 -4 -4 -4 -3 -3 ------- Run | Yrd Mat Min Mat Min Mat Sto Rec Scr Fac Ext Cet Arc Hub Fac Was Fac DSF Fac Was Fac DSF Res Qua Slots Evolved 14 | . . . 2 . 2 . . . 4 . . . . 2 . . . 2 . . . 2 . Power 1 | . . . . . . . . . 1 . . . . . . . . . . . . . . Propulsion 8 | . . . 1 . 1 . . . 2 . . . . 1 . . . 2 . . . 1 . Utility 5 | . . . 1 . 1 . . . 1 . . . . 1 . . . . . . . 1 . Weapon . | . . . . . . . . . . . . . . . . . . . . . . . . Parts Attached 260 | 7 6 6 34 . 33 21 5 24 24 18 2 4 6 16 4 . . 10 1 2 13 13 11 Power 26 | 1 1 . 3 . 2 1 . . 2 7 . . 1 4 . . . . 1 . . 3 . Engine 16 | 1 1 . 3 . 2 1 . . 2 3 . . . 2 . . . . . . . 1 . Core 7 | . . . . . . . . . . 4 . . 1 2 . . . . . . . . . Reactor 3 | . . . . . . . . . . . . . . . . . . . 1 . . 2 . Propulsion 79 | 2 1 . 12 . 12 8 . 7 1 3 . 1 5 5 . . . 4 . 1 10 4 3 Treads 16 | 1 . . 3 . 5 1 . 2 . 1 . . . . . . . . . . 1 1 1 Leg . | . . . . . . . . . . . . . . . . . . . . . . . . Wheel 24 | 1 1 . 8 . 7 7 . . . . . . . . . . . . . . . . . Hover 10 | . . . . . . . . 1 . . . 1 2 1 . . . 1 . . 4 . . Flight 29 | . . . 1 . . . . 4 1 2 . . 3 4 . . . 3 . 1 5 3 2 Utility 92 | 2 1 2 9 . 10 5 5 14 12 5 2 2 . 5 2 . . 4 . 1 3 4 4 Device 36 | 1 . 2 1 . 4 2 . 6 5 4 . 1 . 3 1 . . 3 . . 1 . 2 Storage 9 | 1 1 . 1 . . . . 2 2 . . . . . . . . . . . . 2 . Processor 13 | . . . 1 . . . 1 2 3 1 1 . . 1 1 . . . . 1 . 1 . Hackware 14 | . . . 1 . 3 1 . 1 2 . 1 1 . . . . . 1 . . 1 1 1 Protection 20 | . . . 5 . 3 2 4 3 . . . . . 1 . . . . . . 1 . 1 Artifact . | . . . . . . . . . . . . . . . . . . . . . . . . Weapon 63 | 2 3 4 10 . 9 7 . 3 9 3 . 1 . 2 2 . . 2 . . . 2 4 Energy Gun 9 | 1 . . 4 . 1 1 . . 2 . . . . . . . . . . . . . . Energy Cannon 5 | . . . 2 . . . . . 1 . . . . . . . . . . . . . 2 Ballistic Gun 17 | 1 3 2 2 . 6 1 . 2 . . . . . . . . . . . . . . . Ballistic Cannon 6 | . . . . . . 2 . . . . . . . 1 2 . . . . . . 1 . Launcher 10 | . . 2 2 . 2 2 . . 2 . . . . . . . . . . . . . . Special Weapon 4 | . . . . . . . . 1 . 1 . . . 1 . . . 1 . . . . . Impact Weapon 3 | . . . . . . . . . 3 . . . . . . . . . . . . . . Slashing Weapon 6 | . . . . . . 1 . . 1 2 . . . . . . . . . . . 1 1 Piercing Weapon 2 | . . . . . . . . . . . . . . . . . . 1 . . . . 1 Special Melee Weapon 1 | . . . . . . . . . . . . 1 . . . . . . . . . . . Unidentified Prototypes 22 | . . . 5 . 1 2 . . 3 . . . . 1 2 . . 1 . . 1 2 4 Corrupted Parts 5 | . . 3 . . . . . 1 . . 1 . . . . . . . . . . . . System Corruption 25 | . . 20 . . . . . 4 . . 1 . . . . . . . . . . . . Parts Lost 73 | . 2 1 4 . 12 7 . . . 3 6 . 5 1 . . 1 . . 5 10 1 15 Power 11 | . 1 . 1 . 1 . . . . 2 1 . 2 . . . . . . 1 1 . 1 Propulsion 42 | . 1 . 1 . 6 4 . . . 1 4 . 3 . . . 1 . . 4 7 . 10 Utility 12 | . . . . . 2 2 . . . . 1 . . 1 . . . . . . 2 1 3 Weapon 8 | . . 1 2 . 3 1 . . . . . . . . . . . . . . . . 1 Highest Loss Streak 15 | . 2 1 2 . 3 3 . . . 1 6 . 5 1 . . 1 . . 5 15 1 12 To Critical Strikes 1 | . . . . . . . . . . . 1 . . . . . . . . . . . . Average Backups 19 | 2 9 22 24 24 23 23 24 14 9 10 7 5 4 4 5 5 5 4 4 4 4 9 12 Power . | . . . . 1 . . . . . . . . . . . . . . . . . . 1 Propulsion 4 | 2 3 3 6 6 5 4 6 3 . . . . . . . . . . . . . . 1 Utility 7 | . . 7 8 7 9 8 7 5 6 7 5 3 3 3 3 3 3 2 2 2 3 7 5 Weapon 7 | . 4 11 8 8 7 10 10 5 1 2 1 . . . . 1 1 . . . . . 2 Tool/Special . | . . . . . . . . . . . . . . . . . . . . . . . . Unused Backups 70 | 1 2 8 10 1 12 6 . 12 1 . 1 . . 2 . . . . . . . 4 10 Power 4 | 1 . . . . 1 . . . . . . . . . . . . . . . . . 2 Propulsion 9 | . 2 1 1 . 1 2 . 1 . . . . . . . . . . . . . 1 . Utility 25 | . . 2 5 . 3 . . 4 1 . 1 . . 2 . . . . . . . 3 4 Weapon 28 | . . 5 4 1 6 3 . 7 . . . . . . . . . . . . . . 2 Tool/Special 4 | . . . . . 1 1 . . . . . . . . . . . . . . . . 2 Average Slot Usage (%) 89 | . 98 99 99 100 91 87 97 79 88 92 75 63 66 80 94 94 94 86 88 85 54 70 60 Engine 8 | . 13 14 10 11 8 9 9 9 11 8 3 . . . . . . . . . . . . Treads 9 | . 14 14 11 11 16 10 9 1 . . . . . . . . . . . . 1 . . Wheel 18 | . 13 14 21 22 18 24 27 30 . . . . . . . . . . . . . . . Flight 5 | . . . . . . . . 3 32 34 27 13 14 26 35 35 35 30 36 33 12 24 20 Device 7 | . 14 13 1 . 8 7 10 1 19 18 14 8 4 11 17 17 17 19 21 21 13 12 5 Storage 8 | . 14 14 11 11 9 9 9 5 6 6 3 . . . . . . . . . . 3 3 Processor 1 | . . . 2 . . . . . 6 6 8 13 13 11 17 17 17 10 10 10 6 8 9 Hackware 2 | . . . 5 . 4 . . . . . 2 8 13 7 . . . . . . 3 4 5 Protection 9 | . . . 11 22 7 10 16 16 . . . . . . . . . . . . . 2 . Energy Cannon 2 | . . . 14 . . . . . . . . . . . . . . . . . . . . Ballistic Gun 7 | . 23 27 1 13 9 11 12 . . . . . . . . . . . . . . . . Launcher 2 | . . . 3 8 7 1 . . . . . . . . . . . . . . . . . Slashing Weapon 1 | . . . . . . . 2 9 6 5 5 6 6 5 5 5 5 1 . . . 1 2 Peak Build Rating 155 | 9 11 16 27 26 41 45 40 43 60 67 67 47 58 87 91 84 84 103 105 107 109 148 155 Average Rating 39 | 5 9 12 23 25 36 40 36 31 54 60 49 46 50 73 84 84 83 93 102 103 73 123 106 On Entrance 56 | . 9 11 13 24 26 37 37 34 43 60 59 38 47 45 86 84 84 80 103 103 81 101 146 Naked Turns . | . . . . . . . . . . . . . . . . . . . . . . . . Heaviest Build 131 | 13 88 90 108 107 131 129 106 106 30 37 34 12 10 26 25 18 18 23 23 23 18 58 58 Greatest Support 75 | 16 16 16 32 24 62 52 36 52 31 34 34 10 16 35 28 28 30 49 36 53 75 71 64 Greatest Overweight (x) 12 | . 5 5 6 4 10 12 2 4 . 3 . 1 1 . . . . 7 . . 1 . 7 Average Overweight (x) 1 | . 1 5 3 4 3 4 2 . . . . . . . . . . . . . . . . Largest Inventory Capacity 25 | 8 25 25 25 25 25 25 25 25 10 10 10 5 5 5 5 5 5 5 5 5 5 15 15 Average Capacity 21 | 7 13 25 25 25 25 25 25 16 10 10 7 5 5 5 5 5 5 5 5 5 5 11 13 Most Carried 25 | 6 23 25 25 25 25 25 25 25 10 10 10 5 5 5 5 5 5 5 4 5 5 15 15 Average Carried 20 | 2 9 24 24 24 24 23 24 14 9 10 7 5 4 4 5 5 5 4 4 4 4 10 13 Final Capacity 25 | 8 25 25 25 25 25 25 25 10 10 10 5 5 5 5 5 5 5 5 5 5 5 15 5 Final Carried 25 | 5 23 24 24 25 25 22 25 10 10 10 5 5 5 5 5 5 5 4 4 5 5 15 4 Class Distribution -------------------- 63% | Mutant 18% | Scavenger-Mutant 5% | Sprinter Dominant Class ---------------- Mutant | -10/Materials Mutant | -10/Mines Mutant | -9/Materials Mutant | -9/Mines Scavenger-Mutant | -8/Materials Mutant | -8/Storage Mutant | -8/Recycling Mutant | -8/Scraptown Sprinter | -6/Factory Commander-Mutant | -6/Extension Commander-Mutant | -6/Cetus Scavenger-Sprinter | -6/Archives Sprinter | -6/Hub_04(d) Scavenger-Sprinter | -5/Factory Scavenger-Sprinter | -5/Waste Scavenger-Sprinter | -5/Factory Scavenger-Sprinter | -5/DSF Machinist-Sprinter | -4/Factory Machinist-Sprinter | -4/Waste Machinist-Sprinter | -4/Factory Mutant | -4/DSF Infiltrator-Ninja | -3/Research Mutant | -3/Quarantine Resources | -11 -10 -10 -9 -9 -8 -8 -8 -8 -6 -6 -6 -6 -6 -5 -5 -5 -5 -4 -4 -4 -4 -3 -3 ----------- Run | Yrd Mat Min Mat Min Mat Sto Rec Scr Fac Ext Cet Arc Hub Fac Was Fac DSF Fac Was Fac DSF Res Qua Matter Collected 10849 | 283 161 787 967 61 2134 3697 263 387 276 524 . 33 178 295 74 . . 107 . 30 70 291 231 Remotely . | . . . . . . . . . . . . . . . . . . . . . . . . Salvage Created 14519 | 149 440 380 2672 16 3264 5228 327 . 356 734 . 33 17 268 . . . 133 . 30 59 291 122 Parts 703 | 7 24 26 157 7 181 213 11 . 10 16 . 4 2 10 . . . 3 . 2 6 14 10 Haulers Intercepted 19 | . 1 . 6 . 4 6 . . . . . . . . . . . 1 . . . 1 . Recyclers Shooed 20 | . . 1 1 . 4 7 3 . 2 1 . . . . . . . . . . . 1 . Parts Field Recycled . | . . . . . . . . . . . . . . . . . . . . . . . . Retrieved Matter . | . . . . . . . . . . . . . . . . . . . . . . . . Parts Self-Destructed . | . . . . . . . . . . . . . . . . . . . . . . . . Prevented . | . . . . . . . . . . . . . . . . . . . . . . . . Kills | -11 -10 -10 -9 -9 -8 -8 -8 -8 -6 -6 -6 -6 -6 -5 -5 -5 -5 -4 -4 -4 -4 -3 -3 ------- Run | Yrd Mat Min Mat Min Mat Sto Rec Scr Fac Ext Cet Arc Hub Fac Was Fac DSF Fac Was Fac DSF Res Qua Combat Hostiles Destroyed 224 | . 8 10 52 6 50 87 2 . 1 2 . . . 3 . . . . . . 2 . 1 Melee 9 | . . . . . . . . . 1 2 . . . 3 . . . . . . 2 . 1 Guns 70 | . 8 7 2 . 35 16 2 . . . . . . . . . . . . . . . . Cannons 41 | . . . 21 . . 20 . . . . . . . . . . . . . . . . . AOE 93 | . . 3 24 6 14 46 . . . . . . . . . . . . . . . . . Classes Destroyed 21 | 2 4 1 6 . 3 1 . . 1 1 . . . . . . . . . . 1 . 1 Worker 32 | . . 1 4 . 7 15 . . 4 . . . . . . . . . . . . 1 . Builder 18 | . . . 4 . 8 5 . . . . . . . . . . . . . . . 1 . Tunneler 8 | 2 . . . . 3 . . . . . . . 1 1 . . . . . . . 1 . Hauler 19 | . 1 . 6 . 4 6 . . . . . . . . . . . 1 . . . 1 . Recycler 39 | 1 1 2 . . 2 23 3 . 2 4 . . . . . . . . . . . 1 . Mechanic 8 | . . . 1 . 2 5 . . . . . . . . . . . . . . . . . Operator 9 | . . . 3 . 3 1 . . . . . 1 . 1 . . . . . . . . . Drone 1 | . . . . . . . . . 1 . . . . . . . . . . . . . . Watcher 17 | . 1 . 5 . 4 1 . . 1 2 . . . . . . . 1 . 1 . . 1 Swarmer 35 | . 2 6 11 6 3 7 . . . . . . . . . . . . . . . . . Cutter 2 | . . . . . . . . . . . . . . . . . . . . . 2 . . Grunt 124 | . 6 4 27 . 28 55 . . . 1 . . . 3 . . . . . . . . . Brawler 6 | . . . 2 . 1 3 . . . . . . . . . . . . . . . . . Duelist 12 | . . . 2 . 2 8 . . . . . . . . . . . . . . . . . Protector 6 | . . . . . . 6 . . . . . . . . . . . . . . . . . Sentry 24 | . . . 10 . 7 5 2 . . . . . . . . . . . . . . . . Specialist 6 | . . . . . 6 . . . . . . . . . . . . . . . . . . Hunter 5 | . . . . . 2 3 . . . . . . . . . . . . . . . . . Heavy 1 | . . . . . 1 . . . . . . . . . . . . . . . . . . Behemoth 1 | . . . . . . . . . . 1 . . . . . . . . . . . . . Alpha 7 1 | . . . . . . . . . . . . . . . . . . . . . . . 1 Best Kill Streak 18 | 2 4 3 7 3 6 18 2 . 5 4 . 1 1 2 . . . 1 . 1 2 2 1 Combat Bots Only 16 | . 3 3 5 3 4 16 1 . 1 1 . . . 2 . . . . . . 2 . 1 Max Kills in Single Turn 7 | 1 2 3 5 2 5 7 1 . 1 1 . 1 1 1 . . . 1 . 1 1 1 1 Gunslinging 1 | . 1 1 . . 1 . . . . . . . . . . . . . . . . . . Exploded 5 | . . 3 3 2 3 5 . . . . . . . . . . . . . . . . . Melee 1 | . . . . . . . . . 1 1 . . . 1 . . . . . . 1 . 1 Uniques/NPCs Destroyed . | . . . . . . . . . . . . . . . . . . . . . . . . Combat | -11 -10 -10 -9 -9 -8 -8 -8 -8 -6 -6 -6 -6 -6 -5 -5 -5 -5 -4 -4 -4 -4 -3 -3 -------- Run | Yrd Mat Min Mat Min Mat Sto Rec Scr Fac Ext Cet Arc Hub Fac Was Fac DSF Fac Was Fac DSF Res Qua Hostile Shots Fired 1137 | . 38 24 103 11 282 268 2 . 8 79 26 4 51 . . . 7 2 . 38 59 5 130 Missed 393 | . 13 7 37 3 88 91 . . 4 34 11 3 26 . . . 1 1 . 17 19 3 35 Hits 744 | . 25 17 66 8 194 177 2 . 4 45 15 1 25 . . . 6 1 . 21 40 2 95 Melee 23 | . . . . . 3 8 . . . . . . 2 . . . 3 . . . 7 . . Projectile 721 | . 25 17 66 8 191 169 2 . 4 45 15 1 23 . . . 3 1 . 21 33 2 95 AOE 4 | . . . . . . . . . . . . . . . . . 1 . . . 3 . . Critical Strikes 31 | . . 1 2 . 11 7 . . . 1 2 . 1 . . . . . . . 3 . 3 Actively Blocked 7 | . . . . . . 7 . . . . . . . . . . . . . . . . . Damage Taken 14419 | . 297 184 1028 132 3061 2809 32 138 37 492 437 24 342 . 37 . 216 18 . 373 1591 47 3124 Core 3179 | . 63 49 250 . 301 203 . . . 191 121 . 83 . . . 75 . . 92 444 23 1284 Absorbed by Shields 290 | . . . . . 36 . . . . 202 . . . . . . 52 . . . . . . Regen/Repaired (Parts) 948 | . . . 211 . 103 539 . . 63 . . . . . . . . . 8 . . 24 . Core Remaining (%) 56 | 100 . 55 . 37 . . . 8 . . . . 53 . . . 92 . . . 53 . . Volleys Fired 743 | 13 26 28 122 6 219 289 10 . 5 4 2 . 1 2 . . . 1 . 2 1 . 12 Largest 2 | 2 2 2 2 1 2 2 2 . 1 1 1 . 1 1 . . . 1 . 1 1 . 2 Hottest 126 | 60 60 40 126 36 98 72 50 . 90 36 . . . 44 . . . 7 . 7 . . 94 Shots Fired 1260 | 26 52 55 229 7 418 422 20 . 5 4 2 . 1 2 . . . 1 . 2 1 . 13 Gun 845 | 26 52 54 56 2 372 263 20 . . . . . . . . . . . . . . . . Cannon 264 | . . . 145 . 6 94 . . 5 . . . . 2 . . . . . . . . 12 Launcher 141 | . . 1 28 5 40 65 . . . 2 . . . . . . . . . . . . . Special 10 | . . . . . . . . . . 2 2 . 1 . . . . 1 . 2 1 . 1 Kinetic 831 | 13 43 54 28 2 312 357 20 . . . . . . 2 . . . . . . . . . Thermal 115 | 13 9 . 28 . 60 . . . 5 . . . . . . . . . . . . . . Explosive 53 | . . 1 6 5 3 36 . . . 2 . . . . . . . . . . . . . Electromagnetic 251 | . . . 167 . 43 29 . . . . . . . . . . . . . . . . 12 Robot Hit Streak 23 | 11 14 9 12 1 12 23 4 . . 5 . . . . . . . 1 . 1 . . 6 Robot Miss Streak 6 | 2 2 2 4 3 6 4 2 . . . 1 . . . . . . . . 1 . . 2 Penetration Max 1 | . . . . . . 1 . . . . . . . . . . . . . . . . . Secondary Targets 13 | . 3 1 1 . 6 2 . . . . . . . . . . . . . . . . . Max Gunslinging Chain 1 | . 1 1 1 . 1 1 . . . . . . . . . . . . . . . . . Shots Hit Robots 884 | 15 35 41 139 1 256 264 11 . 12 35 . 1 9 14 . . . 5 . 4 8 11 23 Core Hits 574 | 7 15 20 88 8 168 226 7 . 4 11 . 1 2 4 . . . 3 . 1 2 5 2 Critical Kills 2 | . . 1 . . 1 . . . . . . . . . . . . . . . . . . Critical Parts Destroyed 5 | . . . . . 2 . . . . 3 . . . . . . . . . . . . . Critical Strikes 37 | . . 1 2 . 5 8 . . . 9 . . . 1 . . . . . . 1 4 6 Burn 2 | . . . . . 2 . . . . . . . . . . . . . . . . . . Destroy 4 | . . 1 . . 3 . . . . . . . . . . . . . . . . . . Blast 8 | . . . . . . 8 . . . . . . . . . . . . . . . . . Corrupt 2 | . . . 2 . . . . . . . . . . . . . . . . . . . . Smash 3 | . . . . . . . . . . 3 . . . . . . . . . . . . . Sever 7 | . . . . . . . . . . 6 . . . 1 . . . . . . . . . Impale 11 | . . . . . . . . . . . . . . . . . . . . . 1 4 6 Melee Attacks 221 | . . . . . . 1 . . 45 41 . 9 13 21 . . 7 11 1 3 10 26 33 Impact 15 | . . . . . . . . . 7 8 . . . . . . . . . . . . . Slashing 128 | . . . . . . 1 . . 38 33 . 9 7 14 . . 7 1 . . . 3 15 Piercing 65 | . . . . . . . . . . . . . . . . . . 10 1 3 10 23 18 Sneak Attacks 42 | . . . . . . . . . 7 7 . 1 8 5 . . . 2 . . 5 7 . Combat Hostiles 13 | . . . . . . . . . . 1 . . 6 1 . . . . . . 5 . . Follow-up Attacks 7 | . . . . . . . . . . 5 . . . . . . . . . . . . 2 Damage Inflicted 34540 | 150 414 723 5254 417 7011 13844 200 . 808 2012 . 135 217 550 . . . 284 . 181 369 796 1175 Guns 8756 | 150 414 512 406 . 4293 2781 200 . . . . . . . . . . . . . . . . Cannons 6421 | . . . 2578 . 126 3509 . . . . . . . . . . . . . . . . 208 Explosions 13204 | . . 211 2261 417 2592 7539 . . . 184 . . . . . . . . . . . . . Melee 6132 | . . . . . . . . . 808 1828 . 135 214 550 . . . 284 . 181 369 796 967 Ramming 27 | . . . 9 . . 15 . . . . . . 3 . . . . . . . . . . Kinetic 11226 | 67 336 512 245 . 3576 6290 200 . . . . . . . . . . . . . . . . Thermal 2530 | 83 78 . 845 . 1416 108 . . . . . . . . . . . . . . . . . Explosive 7473 | . . 211 602 417 545 5514 . . . 184 . . . . . . . . . . . . . Electromagnetic 7152 | . . . 3553 . 1474 1917 . . . . . . . . . . . . . . . . 208 Impact 639 | . . . . . . . . . 236 403 . . . . . . . . . . . . . Slashing 3104 | . . . . . . . . . 572 1425 . 135 214 550 . . . 86 . . . 79 43 Piercing 2389 | . . . . . . . . . . . . . . . . . . 198 . 181 369 717 924 Highest Corruption 63 | . . 20 1 1 4 7 7 4 . 22 42 42 63 . . . . . 10 10 28 2 7 Average Corruption 5 | . . 10 1 1 3 6 7 4 . 22 30 42 45 . . . . . 10 10 22 2 4 Corruption Purged . | . . . . . . . . . . . . . . . . . . . . . . . . Corruption Blocked . | . . . . . . . . . . . . . . . . . . . . . . . . Effects 412 | . . 12 31 4 104 152 29 6 . 29 5 5 11 . . . . . 3 2 6 1 12 Message Errors 87 | . . 2 11 1 14 34 8 2 . 7 2 2 1 . . . . . . . 2 . 1 Matter Fused 101 | . . 3 6 . 27 39 7 . . 9 2 1 2 . . . . . . . 1 . 4 Heat Flow Errors 53 | . . . 5 . 14 21 4 . . 5 . . . . . . . . . 2 1 1 . Energy Discharges 38 | . . 3 1 1 9 14 3 2 . 1 . . . . . . . . 1 . 2 . 1 Parts Rejected 9 | . . . . . 2 4 . . . . . . 1 . . . . . 1 . . . 1 Parts Fused 7 | . . . . . 2 2 . . . 1 . . 2 . . . . . . . . . . Data Loss (minor) 53 | . . 4 3 1 15 20 3 . . 3 . 1 . . . . . . . . . . 3 Data Loss (major) 22 | . . . 1 . 8 5 3 2 . 1 . . . . . . . . . . . . 2 Misfires 14 | . . . 1 1 3 9 . . . . . . . . . . . . . . . . . Alerts 10 | . . . 2 . 7 . 1 . . . . . . . . . . . . . . . . Misdirections 10 | . . . . . . . . . . 2 1 1 5 . . . . . 1 . . . . Weapon Failures 8 | . . . 1 . 3 4 . . . . . . . . . . . . . . . . . Overload Shots . | . . . . . . . . . . . . . . . . . . . . . . . . Overflow Damage 1974 | . . . 94 . 105 397 . . 289 460 . . 40 79 . . . 3 . 31 158 280 38 Projectiles 382 | . . . 33 . 29 320 . . . . . . . . . . . . . . . . . Explosions 209 | . . . 61 . 76 72 . . . . . . . . . . . . . . . . . Melee 1383 | . . . . . . 5 . . 289 460 . . 40 79 . . . 3 . 31 158 280 38 Knockbacks 17 | . . . . . . 15 . . 2 . . . . . . . . . . . . . . Impact 2 | . . . . . . . . . 2 . . . . . . . . . . . . . . Kinetic 15 | . . . . . . 15 . . . . . . . . . . . . . . . . . Secondary . | . . . . . . . . . . . . . . . . . . . . . . . . Self-Inflicted Damage 356 | . . . 207 70 25 53 . . . . . . 1 . . . . . . . . . . Shots 13 | . . . 6 2 3 2 . . . . . . . . . . . . . . . . . Rammed 3 | . . . 1 . . 1 . . . . . . 1 . . . . . . . . . . Targets Rammed 3 | . . . 1 . . 1 . . . . . . 1 . . . . . . . . . . Kicked . | . . . . . . . . . . . . . . . . . . . . . . . . Crushed . | . . . . . . . . . . . . . . . . . . . . . . . . Highest Temperature 618 | 40 46 20 340 36 269 355 243 . 250 190 . . . . . . . 21 . 169 133 215 618 Average Temperature 93 | 21 22 6 95 17 75 85 79 . 123 78 . . . . . . . 12 . 81 97 21 204 Received Heat Transfer 3132 | . 150 84 309 . 1106 1098 9 . . 76 81 9 69 . . . . 9 . 21 111 . . Effects 32 | . . . 2 . . 6 . . . . . . . . . . . . . . . 2 22 Shutdowns 4 | . . . . . . . . . . . . . . . . . . . . . . . 4 Energy Bleed 5 | . . . 1 . . 2 . . . . . . . . . . . . . . . . 2 Interference 15 | . . . 1 . . 4 . . . . . . . . . . . . . . . 2 8 Matter Decay 1 | . . . . . . . . . . . . . . . . . . . . . . . 1 Short Circuit 2 | . . . . . . . . . . . . . . . . . . . . . . . 2 Damage (minor) 1 | . . . . . . . . . . . . . . . . . . . . . . . 1 Damage (core) 4 | . . . . . . . . . . . . . . . . . . . . . . . 4 Siege Activations . | . . . . . . . . . . . . . . . . . . . . . . . . Martial Activations . | . . . . . . . . . . . . . . . . . . . . . . . . Shielding Activations . | . . . . . . . . . . . . . . . . . . . . . . . . Robots Disrupted . | . . . . . . . . . . . . . . . . . . . . . . . . Combat Hostiles . | . . . . . . . . . . . . . . . . . . . . . . . . Robots Corrupted 14 | . . . 5 . 1 6 . . 1 1 . . . . . . . . . . . . . Combat Hostiles 11 | . . . 5 . 1 5 . . . . . . . . . . . . . . . . . Parts Fried 58 | . . . 28 . 9 17 . . . 4 . . . . . . . . . . . . . Impact Corruptions 12 | . . . . . . 2 . . 3 7 . . . . . . . . . . . . . Robots Melted . | . . . . . . . . . . . . . . . . . . . . . . . . Combat Hostiles . | . . . . . . . . . . . . . . . . . . . . . . . . Parts Melted 10 | . 2 . 1 . 3 . . . . . . . . 4 . . . . . . . . . Heat Transferred 3706 | 200 175 . 1375 . 1906 50 . . . . . . . . . . . . . . . . . Parts Sabotaged . | . . . . . . . . . . . . . . . . . . . . . . . . Parts Stolen . | . . . . . . . . . . . . . . . . . . . . . . . . Parts Stripped . | . . . . . . . . . . . . . . . . . . . . . . . . Power Chain Reactions 19 | . . . 13 . 5 1 . . . . . . . . . . . . . . . . . Alert | -11 -10 -10 -9 -9 -8 -8 -8 -8 -6 -6 -6 -6 -6 -5 -5 -5 -5 -4 -4 -4 -4 -3 -3 ------- Run | Yrd Mat Min Mat Min Mat Sto Rec Scr Fac Ext Cet Arc Hub Fac Was Fac DSF Fac Was Fac DSF Res Qua Maximum Alert Level 5 | . . . 3 2 3 5 4 . 1 4 3 1 . 2 . . . . . . . . . Low Security (%) 28 | 100 100 100 37 . 8 . . . 88 28 . . 100 47 100 100 100 100 100 100 100 100 100 Level 1 15 | . . . 6 65 34 6 . . 11 18 . 100 . 21 . . . . . . . . . Level 2 23 | . . . 27 34 51 13 . . . 15 62 . . 31 . . . . . . . . . Level 3 20 | . . . 28 . 6 33 85 . . 23 37 . . . . . . . . . . . . Level 4 10 | . . . . . . 35 14 . . 14 . . . . . . . . . . . . . Level 5 1 | . . . . . . 7 . . . . . . . . . . . . . . . . . High Security 1 | . . . . . . 4 . . . . . . . . . . . . . . . . . Max Security . | . . . . . . . . . . . . . . . . . . . . . . . . Sterilizations 3 | . . . 1 . 1 1 . . . . . . . . . . . . . . . . . Peak Influence 2165 | 5 122 133 962 482 967 2165 1127 . 228 1322 732 259 150 467 152 88 75 40 50 41 45 30 95 Initial 1100 | . . 3 21 372 105 408 1100 . . 58 732 254 81 31 152 88 65 33 8 36 3 16 3 Average 532 | 1 58 43 441 372 433 999 998 . 87 523 678 246 88 266 142 88 68 29 12 27 23 10 33 Influence Increases 10991 | 15 257 269 1660 250 1812 2597 168 . 396 2018 15 21 174 655 24 5 10 71 54 27 70 160 263 Destroy 0b10 Robot/C 5600 | . 160 200 1040 160 1060 1620 40 . . 900 . . 20 340 . . . . . . 40 . 20 Destroy 0b10 Robot/NC 805 | 15 15 15 115 . 175 310 15 . 40 40 . 5 5 10 . . . 10 . 5 . 25 5 Destroy Leader 1094 | . 44 40 272 20 258 304 . . 2 94 . . 10 40 . . . 4 . 2 . 2 2 Allied During Kill 1019 | . . . . 10 10 . . . . 835 . . 4 160 . . . . . . . . . Successful Hack 291 | . 7 . 31 . 46 37 22 . 55 7 . . 7 . . 5 . 32 . 5 . 21 16 Select Force Hacks 260 | . 30 . 30 . . . 90 . 30 . . . 50 . . . . . . . . 30 . Disable Machine 435 | . . . 75 15 75 75 . . 30 . . 15 15 60 . . . . . . . 15 60 Destroy Structure 647 | . 1 14 82 45 98 161 1 . 29 52 . 1 3 30 24 . 10 10 54 . . 22 10 Partial Spotted 195 | . . . . . . . . . 60 75 . . . 15 . . . 15 . . . 30 . Lose Combat Pursuer 645 | . . . 15 . 90 90 . . 150 15 15 . 60 . . . . . . 15 30 15 150 Influence Decreases 11223 | 15 248 222 761 933 1117 1399 1737 852 276 830 686 423 344 284 334 38 38 112 26 74 45 183 246 Entered New Map 5166 | . . 6 35 583 167 559 1321 852 . 62 576 383 154 34 284 38 28 32 16 16 2 14 4 Time Decay 4982 | 15 228 206 686 350 770 770 416 . 261 518 30 40 80 160 30 . . 80 10 20 . 167 145 Lost Part 600 | . 20 10 40 . 120 70 . . . 30 60 . 50 10 . . 10 . . 38 43 2 97 Lost Ally 475 | . . . . . 60 . . . 15 220 20 . 60 80 20 . . . . . . . . Squads Dispatched 90 | . 3 1 9 . 13 22 . . 12 5 . . 3 5 . . 2 3 . 3 2 6 1 Investigation 39 | . 3 1 3 . 2 3 . . 8 2 . . 2 4 . . . 2 . 3 . 5 1 Extermination 4 | . . . . . . . . . 2 . . . . 1 . . . . . . . 1 . Reinforcement 28 | . . . 3 . 9 7 . . 2 1 . . 1 . . . 2 1 . . 2 . . Assault 18 | . . . 3 . 2 11 . . . 2 . . . . . . . . . . . . . Garrison 1 | . . . . . . 1 . . . . . . . . . . . . . . . . . Intercept . | . . . . . . . . . . . . . . . . . . . . . . . . Searches Triggered . | . . . . . . . . . . . . . . . . . . . . . . . . Construction Impeded 9 | . . . . . 2 6 . . . 1 . . . . . . . . . . . . . Haulers Reinforced . | . . . . . . . . . . . . . . . . . . . . . . . . Active Scanning Responses . | . . . . . . . . . . . . . . . . . . . . . . . . Cargo Convoy Interrupts . | . . . . . . . . . . . . . . . . . . . . . . . . Stealth | -11 -10 -10 -9 -9 -8 -8 -8 -8 -6 -6 -6 -6 -6 -5 -5 -5 -5 -4 -4 -4 -4 -3 -3 --------- Run | Yrd Mat Min Mat Min Mat Sto Rec Scr Fac Ext Cet Arc Hub Fac Was Fac DSF Fac Was Fac DSF Res Qua Distress Signals 20 | . 2 . . . 6 6 . . . 1 1 . 3 . . . . . . . . 1 . Communications Jammed 41 | . . . . . . . . . 2 36 . . . . . . . 3 . . . . . Distress Signals 39 | . . . . . . . . . . 36 . . . . . . . 3 . . . . . Times Spotted 484 | . 16 10 72 8 77 113 1 . 16 55 8 3 17 13 6 1 2 6 6 16 13 9 16 Peak Tracking Total 17 | . 8 3 5 4 5 17 . . 12 13 5 3 14 3 6 1 2 3 5 13 6 7 5 Tactical Retreats 25 | . . . 1 . 5 4 . . 4 1 1 . 2 . . . . . . 1 2 1 3 Traps | -11 -10 -10 -9 -9 -8 -8 -8 -8 -6 -6 -6 -6 -6 -5 -5 -5 -5 -4 -4 -4 -4 -3 -3 ------- Run | Yrd Mat Min Mat Min Mat Sto Rec Scr Fac Ext Cet Arc Hub Fac Was Fac DSF Fac Was Fac DSF Res Qua Traps Triggered 18 | . 1 . 2 . 4 5 . 1 . 1 . . . 1 . . 2 1 . . . . . Indirectly 1 | . . . . . 1 . . . . . . . . . . . . . . . . . . Trap Hack Attempts . | . . . . . . . . . . . . . . . . . . . . . . . . Triggered . | . . . . . . . . . . . . . . . . . . . . . . . . Disarmed . | . . . . . . . . . . . . . . . . . . . . . . . . Reprogrammed . | . . . . . . . . . . . . . . . . . . . . . . . . Reused . | . . . . . . . . . . . . . . . . . . . . . . . . Traps Extracted . | . . . . . . . . . . . . . . . . . . . . . . . . Installed 1 | . . . . . . . . 1 . . . . . . . . . . . . . . . Triggered . | . . . . . . . . . . . . . . . . . . . . . . . . Most Traps Carried 3 | . . 3 3 3 3 3 3 3 . . . . . . . . . . . . . . . Machines | -11 -10 -10 -9 -9 -8 -8 -8 -8 -6 -6 -6 -6 -6 -5 -5 -5 -5 -4 -4 -4 -4 -3 -3 ---------- Run | Yrd Mat Min Mat Min Mat Sto Rec Scr Fac Ext Cet Arc Hub Fac Was Fac DSF Fac Was Fac DSF Res Qua Machines Disabled 32 | . . . 5 1 6 5 . . 2 2 . 1 1 4 . . . . . . . 1 4 Max in Single Turn 2 | . . . 1 1 2 1 . . 1 1 . 1 1 1 . . . . . . . 1 1 Garrison Access 5 | . . . . . 1 1 . . . . . . . 1 . . . . . . . 1 1 Network Hub 1 | . . . . . . . . . . . . . 1 . . . . . . . . . . Energy Cycler 1 | . . . . . . . . . . 1 . . . . . . . . . . . . . Machines Repaired . | . . . . . . . . . . . . . . . . . . . . . . . . Machines Dismantled . | . . . . . . . . . . . . . . . . . . . . . . . . Machines Sabotaged 1 | . . . . . . . . . . . . . 1 . . . . . . . . . . Overloaded Fab Kills . | . . . . . . . . . . . . . . . . . . . . . . . . Hacking | -11 -10 -10 -9 -9 -8 -8 -8 -8 -6 -6 -6 -6 -6 -5 -5 -5 -5 -4 -4 -4 -4 -3 -3 --------- Run | Yrd Mat Min Mat Min Mat Sto Rec Scr Fac Ext Cet Arc Hub Fac Was Fac DSF Fac Was Fac DSF Res Qua Machines Accessed 120 | . 4 2 12 . 12 13 8 8 20 4 . . 3 6 . 1 . 5 . 5 . 9 8 Terminals 62 | . 3 . 9 . 7 9 5 . 7 3 . . 3 1 . 1 . 3 . 2 . 4 5 Fabricators 5 | . . . . . . . . . 2 . . . . 1 . . . 1 . 1 . . . Repair Stations 10 | . . . 1 . 2 2 . . 3 . . . . . . . . . . . . 1 1 Recycling Units 18 | . 1 . . . . 1 3 . 5 1 . . . 3 . . . . . 2 . 2 . Scanalyzers 9 | . . . 2 . 2 . . . 2 . . . . . . . . 1 . . . 1 1 Garrison Access 6 | . . . . . 1 1 . . 1 . . . . 1 . . . . . . . 1 1 Total Hacks 396 | . 12 2 35 . 64 44 26 47 41 8 . . 8 16 . 1 . 27 . 12 . 24 29 Successful 225 | . 3 2 25 . 34 22 17 47 20 4 . . 3 11 . 1 . 13 . 6 . 9 8 Failed 171 | . 9 . 10 . 30 22 9 . 21 4 . . 5 5 . . . 14 . 6 . 15 21 Catastrophic 28 | . 5 . . . 1 4 . . 6 1 . . 1 1 . . . 2 . . . 4 3 Database Lockouts . | . . . . . . . . . . . . . . . . . . . . . . . . Manual 164 | . 11 . 14 . 31 14 17 . 18 3 1 . 8 10 . . . 12 . 8 . 9 8 Terminals 197 | . 10 . 19 . 36 30 17 . 16 6 . . 8 2 . 1 . 14 . 6 . 11 21 Fabricators 23 | . . . . . . . . . 5 . . . . 7 . . . 7 . 4 . . . Repair Stations 34 | . . . 5 . 12 9 . . 4 . . . . . . . . . . . . 3 1 Recycling Units 37 | . 2 . . . . 4 9 . 9 2 . . . 6 . . . . . 2 . 3 . Scanalyzers 47 | . . . 11 . 15 . . . 5 . . . . . . . . 6 . . . 6 4 Garrison Access 9 | . . . . . 1 1 . . 2 . . . . 1 . . . . . . . 1 3 Terminal Hacks 88 | . 1 2 3 . 5 12 3 47 3 2 . . 1 . . 1 . 2 . 1 . 2 3 Record 42 | . . . . . . . . 42 . . . . . . . . . . . . . . . Part Schematic 9 | . 1 . . . 1 5 . . 2 . . . . . . . . . . . . . . Robot Schematic 1 | . . . . . . . 1 . . . . . . . . . . . . . . . . Robot Analysis 6 | . . . 2 . . . . 4 . . . . . . . . . . . . . . . Prototype ID Bank 6 | . . . . . 2 2 1 . . . . . . . . . . . . . . . 1 Open Door 8 | . . 2 . . . 2 . . 1 2 . . . . . . . . . . . 1 . Open DSF 2 | . . . . . . . . . . . . . . . . 1 . . . 1 . . . Terminal Index 3 | . . . . . . . . . . . . . 1 . . . . 1 . . . . 1 Fabricator Index 1 | . . . . . . . . . . . . . . . . . . . . . . . 1 Repair Station Index 1 | . . . . . 1 . . . . . . . . . . . . . . . . . . Scanalyzer Index 1 | . . . . . . . . . . . . . . . . . . 1 . . . . . Alert Level 1 | . . . . . . . 1 . . . . . . . . . . . . . . . . Locate Traps 4 | . . . . . 1 2 . . . . . . . . . . . . . . . 1 . Hauler Manifests 2 | . . . 1 . . 1 . . . . . . . . . . . . . . . . . Proto ID Catalog 1 | . . . . . . . . 1 . . . . . . . . . . . . . . . Fabricator Hacks 11 | . . . . . . . . . 3 . . . . 4 . . . 3 . 1 . . . Network Status 3 | . . . . . . . . . 1 . . . . 1 . . . 1 . . . . . Load Schematic 5 | . . . . . . . . . 1 . . . . 2 . . . 1 . 1 . . . Build 3 | . . . . . . . . . 1 . . . . 1 . . . 1 . . . . . Repair Station Hacks 19 | . . . 4 . 7 6 . . 2 . . . . . . . . . . . . . . Scan Component 10 | . . . 2 . 4 3 . . 1 . . . . . . . . . . . . . . Repair 9 | . . . 2 . 3 3 . . 1 . . . . . . . . . . . . . . Recycling Unit Hacks 10 | . 1 . . . . 1 4 . 2 . . . . 1 . . . . . . . 1 . Report Inventory 9 | . 1 . . . . 1 3 . 2 . . . . 1 . . . . . . . 1 . Retrieve Components 1 | . . . . . . . 1 . . . . . . . . . . . . . . . . Scanalyzer 31 | . . . 10 . 13 . . . 1 . . . . . . . . 3 . . . 1 3 Insert Component 15 | . . . 4 . 6 . . . 1 . . . . . . . . 1 . . . 1 2 Analyze 16 | . . . 6 . 7 . . . . . . . . . . . . 2 . . . . 1 Garrison Access Hacks 5 | . . . . . 1 1 . . . . . . . 1 . . . . . . . 1 1 Seal Access 5 | . . . . . 1 1 . . . . . . . 1 . . . . . . . 1 1 Unauthorized Hacks 61 | . 1 . 8 . 8 2 10 . 9 2 . . 2 5 . . . 5 . 4 . 4 1 Terminals 34 | . . . 7 . 8 2 7 . 2 1 . . 2 . . . . 3 . 1 . . 1 Track 2 | . . . . . . 1 . . . . . . . . . . . 1 . . . . . Botnet 15 | . . . 2 . 2 1 2 . 2 1 . . 1 . . . . 2 . 1 . . 1 Operators 1 | . . . . . 1 . . . . . . . . . . . . . . . . . . Skim 15 | . . . 5 . 5 . 5 . . . . . . . . . . . . . . . . Sabotage 1 | . . . . . . . . . . . . . 1 . . . . . . . . . . Fabricators 6 | . . . . . . . . . 1 . . . . 2 . . . 2 . 1 . . . Prioritize 2 | . . . . . . . . . . . . . . 1 . . . 1 . . . . . Haulers 1 | . . . . . . . . . . . . . . . . . . 1 . . . . . Recompile 3 | . . . . . . . . . 1 . . . . 1 . . . . . 1 . . . Repair Stations 1 | . . . . . . . . . . . . . . . . . . . . . . 1 . Patch 1 | . . . . . . . . . . . . . . . . . . . . . . 1 . Recycling Units 17 | . 1 . . . . . 3 . 5 1 . . . 3 . . . . . 2 . 2 . Tunnel 4 | . 1 . . . . . 3 . . . . . . . . . . . . . . . . Fedlink 12 | . . . . . . . . . 5 1 . . . 2 . . . . . 2 . 2 . Scrapoids 1 | . . . . . . . . . . . . . . 1 . . . . . . . . . Scanalyzers 3 | . . . 1 . . . . . 1 . . . . . . . . . . . . 1 . Extract 3 | . . . 1 . . . . . 1 . . . . . . . . . . . . 1 . Garrison Access . | . . . . . . . . . . . . . . . . . . . . . . . . Data Cores Recovered . | . . . . . . . . . . . . . . . . . . . . . . . . Used . | . . . . . . . . . . . . . . . . . . . . . . . . Hacking Detections 84 | . 4 . 11 . 10 10 6 . 15 3 1 . 2 3 . . . 5 . 1 . 5 8 Full Trace Events 12 | . 1 . 1 . 1 2 . . 1 1 . . 1 . . . . 2 . . . 1 1 Feedback Events 1 | . . . . . . . . . . . . . . . . . . . . . . . 1 Corruption 1 | . . . . . . . . . . . . . . . . . . . . . . . 1 Feedback Blocked . | . . . . . . . . . . . . . . . . . . . . . . . . Robot Schematics Acquired 3 | . . . . . . . 1 . . . . . . . . . . . . . . . 2 Robots Built . | . . . . . . . . . . . . . . . . . . . . . . . . Authchips . | . . . . . . . . . . . . . . . . . . . . . . . . Time . | . . . . . . . . . . . . . . . . . . . . . . . . Total Robot Build Rating . | . . . . . . . . . . . . . . . . . . . . . . . . Part Schematics Acquired 36 | . 1 . 6 . 7 5 . . 11 . . . . . . . . 1 . . . 1 4 Parts Built 5 | . . . . . . . . . 1 . . . . 2 . . . 2 . . . . . Authchips 3 | . . . . . . . . . 1 . . . . 1 . . . 1 . . . . . Time 222 | . . . . . . . . . 76 . . . . 73 . . . 73 . . . . . Total Part Build Rating 17 | . . . . . . . . . 5 . . . . 6 . . . 6 . . . . . Parts Repaired 9 | . . . 2 . 3 3 . . 1 . . . . . . . . . . . . . . Time 460 | . . . 64 . 225 120 . . 51 . . . . . . . . . . . . . . Parts Recycled . | . . . . . . . . . . . . . . . . . . . . . . . . Recycled Matter . | . . . . . . . . . . . . . . . . . . . . . . . . Retrieved Matter . | . . . . . . . . . . . . . . . . . . . . . . . . Retrieved Components . | . . . . . . . . . . . . . . . . . . . . . . . . Parts Scanalyzed 13 | . . . 4 . 6 . . . 1 . . . . . . . . 1 . . . . 1 Part Schematics Acquired 12 | . . . 4 . 6 . . . . . . . . . . . . 1 . . . . 1 Parts Damaged 2 | . . . . . 1 . . . 1 . . . . . . . . . . . . . . Bothacking | -11 -10 -10 -9 -9 -8 -8 -8 -8 -6 -6 -6 -6 -6 -5 -5 -5 -5 -4 -4 -4 -4 -3 -3 ------------ Run | Yrd Mat Min Mat Min Mat Sto Rec Scr Fac Ext Cet Arc Hub Fac Was Fac DSF Fac Was Fac DSF Res Qua Used RIF Installer . | . . . . . . . . . . . . . . . . . . . . . . . . Robots Hacked 6 | . . . . . . . . . . . . . . 4 . . . 1 . 1 . . . Non-combat 4 | . . . . . . . . . . . . . . 2 . . . 1 . 1 . . . Combat 2 | . . . . . . . . . . . . . . 2 . . . . . . . . . Robot Hacks Applied 7 | . . . . . . . . . . . . . . 5 . . . 1 . 1 . . . parse_system 3 | . . . . . . . . . . . . . . 3 . . . . . . . . . find_chute 2 | . . . . . . . . . . . . . . 1 . . . 1 . . . . . find_dsf 1 | . . . . . . . . . . . . . . . . . . . . 1 . . . check_alert 1 | . . . . . . . . . . . . . . 1 . . . . . . . . . Relay Couplers Released . | . . . . . . . . . . . . . . . . . . . . . . . . Fabnet Peak Effective % . | . . . . . . . . . . . . . . . . . . . . . . . . Robots Rewired 27 | . . . . . . . . . 1 23 . . 3 . . . . . . . . . . Allies Hacked . | . . . . . . . . . . . . . . . . . . . . . . . . Hacks Repelled . | . . . . . . . . . . . . . . . . . . . . . . . . Allies | -11 -10 -10 -9 -9 -8 -8 -8 -8 -6 -6 -6 -6 -6 -5 -5 -5 -5 -4 -4 -4 -4 -3 -3 -------- Run | Yrd Mat Min Mat Min Mat Sto Rec Scr Fac Ext Cet Arc Hub Fac Was Fac DSF Fac Was Fac DSF Res Qua Total Allies 78 | . . . . 4 . . . . 1 26 . . 3 5 19 . . . 20 . . . . Largest Group 20 | . . . . 3 3 . . . 1 15 1 . 2 5 20 . . . 20 . . . . Highest-Rated Group 730 | . . . . 40 40 . . . 29 583 149 . 57 235 722 . . . 730 . . . . Highest-Rated Ally 159 | . . . . 31 16 . . . 29 159 149 . 32 47 50 . . . 50 . . . . Total Orders 4 | . . . . . . . . . 1 3 . . . . . . . . . . . . . STAY 2 | . . . . . . . . . 1 1 . . . . . . . . . . . . . FOLLOW 1 | . . . . . . . . . . 1 . . . . . . . . . . . . . RETURN 1 | . . . . . . . . . . 1 . . . . . . . . . . . . . Ally Attacks 481 | . . . . 3 48 . . . 6 217 4 . 8 113 36 . . . 46 . . . . Total Damage 12978 | . . . . 42 396 . . . 97 6512 107 . 331 2271 1130 . . . 2092 . . . . Kills 76 | . . . . 2 5 . . . . 45 . . 1 14 3 . . . 6 . . . . Allies Corrupted . | . . . . . . . . . . . . . . . . . . . . . . . . Allies Melted . | . . . . . . . . . . . . . . . . . . . . . . . . Intel | -11 -10 -10 -9 -9 -8 -8 -8 -8 -6 -6 -6 -6 -6 -5 -5 -5 -5 -4 -4 -4 -4 -3 -3 ------- Run | Yrd Mat Min Mat Min Mat Sto Rec Scr Fac Ext Cet Arc Hub Fac Was Fac DSF Fac Was Fac DSF Res Qua Active Infowar (turns) 6466 | 19 514 959 1032 . . . . 273 757 1414 53 91 136 229 75 1 59 161 53 67 19 344 210 Sensors 3220 | . . . . . . . . 88 740 1104 31 . 72 219 75 1 59 159 53 67 19 343 190 Terrain 1986 | 19 514 959 494 . . . . . . . . . . . . . . . . . . . . Structural 720 | . . . . . . . . 185 . 46 . . 55 36 . . . . . . . 188 210 Decoding 200 | . . . . . . . . . . 200 . . . . . . . . . . . . . Machine Analysis 914 | . . . 914 . . . . . . . . . . . . . . . . . . . . Jamming 2616 | . . . . . . . . . 645 899 22 91 9 227 70 1 59 161 53 67 8 267 37 ECM 2 | . . . . . . . . . . 2 . . . . . . . . . . . . . Robot Analysis Total 6 | . . . 2 . . . . 4 . . . . . . . . . . . . . . . Derelict Logs Recovered 2 | . . 1 . 1 . . . . . . . . . . . . . . . . . . . Drone Launches 3 | . . . . . . . . . . 3 . . . . . . . . . . . . . Drone Recoveries 3 | . . . . . . . . . . 3 . . . . . . . . . . . . . Decoded 0b10 Intel 5 | . . . . . . . . . . 5 . . . . . . . . . . . . . Emergency Access 1 | . . . . . . . . . . 1 . . . . . . . . . . . . . Items 4 | . . . . . . . . . . 4 . . . . . . . . . . . . . Exploration | -11 -10 -10 -9 -9 -8 -8 -8 -8 -6 -6 -6 -6 -6 -5 -5 -5 -5 -4 -4 -4 -4 -3 -3 ------------- Run | Yrd Mat Min Mat Min Mat Sto Rec Scr Fac Ext Cet Arc Hub Fac Was Fac DSF Fac Was Fac DSF Res Qua Turns Passed 25304 | 115 514 974 4193 799 5213 5466 1011 2802 757 1427 66 91 163 321 75 1 59 161 57 67 98 402 472 Spaces Moved 16112 | 62 324 484 1880 522 1167 1408 556 2849 1621 1446 111 63 346 701 210 3 112 433 186 198 94 741 595 Core 223 | 4 . . . . . . . . . 123 . . . . . . . 1 . . . . 95 Treads 25 | . . . . . 23 . . . . . . . . . . . . . . . 2 . . Legs . | . . . . . . . . . . . . . . . . . . . . . . . . Wheels 8608 | 58 324 484 1880 522 1144 1408 556 2232 . . . . . . . . . . . . . . . Hover 44 | . . . . . . . . . . . . . 1 . . . . . . . 43 . . Flight 7212 | . . . . . . . . 617 1621 1323 111 63 345 701 210 3 112 432 186 198 49 741 500 Fastest Speed 17 | 50 100 175 130 150 116 107 120 27 25 20 20 32 29 20 27 27 24 17 20 19 27 26 30 Average Speed 87 | 96 120 175 142 150 148 149 120 94 25 39 27 33 32 26 27 27 26 22 20 24 39 33 41 Slowest Speed 480 | 100 175 175 190 150 480 260 120 185 27 200 32 102 105 35 27 27 30 400 20 32 180 45 400 Overloaded Moves . | . . . . . . . . . . . . . . . . . . . . . . . . Propulsion Burnouts . | . . . . . . . . . . . . . . . . . . . . . . . . Robots Hopped 51 | . . . . . . . . . 3 18 6 . 9 2 2 . . . 2 3 4 2 . Potential Cave-ins 7 | . . . . . . . . . 2 . . . . . . . . . . . . . 5 Cave-ins Triggered 1 | . . . . . . . . . . . . . . . . . . . . . . . 1 Teleports 1 | . . . . . . . . . . . . . . . . . . . . . . . 1 Exploration Rate (%) 62 | 5 54 90 97 97 75 97 87 93 39 87 48 60 34 12 91 . 87 13 89 5 83 22 72 Regions Visited 23 Branch Regions 10 Pre-discovered Areas 16 | . 1 1 3 . 2 . 4 4 1 . . . . . . . . . . . . . . Known Exits Taken 11 | . . . . . 1 . 1 1 1 1 1 1 1 . . 1 . . . 1 . 1 . Unknown Exits Taken 6 | 1 1 1 1 1 . 1 . . . . . . . . . . . . . . . . . Scrap Searched 8 | . . 3 . 2 . . . 3 . . . . . . . . . . . . . . . Spaces Dug 96 | . . . 8 . 11 . . . 27 11 . 1 3 3 . . 5 5 1 . . 11 10 Terrain Destroyed 638 | . . 17 81 68 108 273 . . 31 20 . 1 3 4 . . 5 5 1 . . 11 10 Melee 64 | . . . . . . . . . 26 . . 1 3 2 . . 5 5 1 . . 11 10 Projectile 45 | . . . . . . 38 . . 5 . . . . 2 . . . . . . . . . AOE 529 | . . 17 81 68 108 235 . . . 20 . . . . . . . . . . . . . Terrain Rammed . | . . . . . . . . . . . . . . . . . . . . . . . . Walls Destroyed . | . . . . . . . . . . . . . . . . . . . . . . . . Machines Disabled . | . . . . . . . . . . . . . . . . . . . . . . . . Actions | -11 -10 -10 -9 -9 -8 -8 -8 -8 -6 -6 -6 -6 -6 -5 -5 -5 -5 -4 -4 -4 -4 -3 -3 --------- Run | Yrd Mat Min Mat Min Mat Sto Rec Scr Fac Ext Cet Arc Hub Fac Was Fac DSF Fac Was Fac DSF Res Qua Total 25824 | 90 401 559 3187 533 4299 4399 889 2953 1916 2206 138 118 375 814 225 2 129 478 200 206 121 838 748 Wait 7633 | 2 16 9 1068 . 2797 2581 302 . 164 484 . 39 11 40 3 . 2 10 11 . 5 21 68 Move 16008 | 61 323 483 1879 521 1166 1407 555 2848 1614 1418 101 62 332 697 206 2 111 433 182 191 86 736 594 Hop 32 | . . . . . . . . . 3 9 3 . 5 2 1 . . . 1 3 3 2 . Pick Up 183 | 6 23 14 18 3 28 20 3 21 6 . 2 1 . 8 . . . 1 . 1 1 18 9 Fast Attach 233 | 7 1 . 18 . 19 24 8 31 28 15 3 4 6 16 7 . . 9 3 3 12 13 6 Attach 51 | . 2 2 5 . 9 8 1 3 2 . 2 . 1 7 . . . 1 . . 1 2 5 Detach 10 | . . 1 1 . 1 1 1 . 1 . 1 . 1 1 . . . . . . . . 1 Swap 166 | . 3 9 34 1 22 36 . 2 8 19 3 . 5 5 1 . . 3 . . 1 5 9 Drop 306 | 1 7 13 41 2 38 31 9 47 31 13 6 3 . 15 7 . . 9 2 3 . 15 13 Fire 743 | 13 26 28 122 6 219 289 10 . 5 4 2 . 1 2 . . . 1 . 2 1 . 12 Melee 210 | . . . . . . 1 . . 42 36 . 9 13 21 . . 7 11 1 3 10 26 30 Ram 2 | . . . 1 . . 1 . . . . . . . . . . . . . . . . . Kick . | . . . . . . . . . . . . . . . . . . . . . . . . Crush . | . . . . . . . . . . . . . . . . . . . . . . . . Escape Stasis 10 | . . . . . . . . . . . . . . . . . 9 . . . . . 1 Rewire 236 | . . . . . . . . . 12 208 15 . . . . . . . . . 1 . . Trap 1 | . . . . . . . . 1 . . . . . . . . . . . . . . . Miscellaneous . | . . . . . . . . . . . . . . . . . . . . . . . . Route ------- -11/Scrapyard -10/Materials (discovered 3 exits: *Mat x2 / *Min) -10/Mines (discovered 3 exits: *Mat / [*Exi] / [*Sub]) -9/Materials (discovered 5 exits: *Mat x3 / [*Min x2]) -9/Mines (discovered 3 exits: *Mat x2 / [*Zio]) -8/Materials (discovered 5 exits: *Fac x3 / *Sto x2) -8/Storage (discovered 2 exits: *Fac / *Rec) -8/Recycling (discovered 2 exits: *Fac / *Scr) -8/Scraptown (discovered 2 exits: *Fac x2) -6/Factory (discovered 7 exits: Fac x3 / *Low x2 / *Ext x2) -6/Extension (discovered 3 exits: *Fac x2 / *Cet) -6/Cetus -6/Archives -6/Hub_04(d) (discovered 2 exits: *Fac x2) -5/Factory -5/Waste -5/Factory -5/DSF -4/Factory -4/Waste -4/Factory -4/DSF -3/Research (discovered 3 exits: Res x2 / *Qua) -3/Quarantine History --------- Turn | Location | Event 7 | -11/Scrapyard | Discovered new exit (range 15) 116 | -11/Scrapyard | Entered Materials 117 | -10/Materials | Met a group of wandering Federalists 221 | -10/Materials | Discovered new exit (range 10) 234 | -10/Materials | Lost 3 allies 312 | -10/Materials | Build established: Mutant 402 | -10/Materials | Discovered new exit (range 6) 419 | -10/Materials | Discovered new exit (range 14) 630 | -10/Materials | Entered Mines 644 | -10/Mines | Deemed a non-threat by the Exiles lab entrance 646 | -10/Mines | Discovered new exit (range 5) 809 | -10/Mines | Found a hidden stash of uninstalled traps 890 | -10/Mines | Met a Derelict shopkeep closing up shop 966 | -10/Mines | Met a Derelict who couldn't figure out how to use a Trap Extractor 1191 | -10/Mines | Discovered new exit (range 13) 1276 | -10/Mines | System corruption reached 10% 1406 | -10/Mines | Discovered new exit (range 10) 1604 | -10/Mines | Entered Materials 1604 | -9/Materials | Evolved 2 slots: Propulsion x1, Utility x1 1661 | -9/Materials | Discovered new exit (range 16) 2217 | -9/Materials | Repaired Hcp. Storage Unit 2265 | -9/Materials | Repaired EM Pulse Cannon 2684 | -9/Materials | Discovered new exit (range 7) 2984 | -9/Materials | Discovered new exit (range 10) 3223 | -9/Materials | Discovered new exit (range 15) 3402 | -9/Materials | Core integrity fell below 50% 3597 | -9/Materials | Discovered new exit (range 13) 3715 | -9/Materials | Learned location of 2 exits from Materials 3831 | -9/Materials | Learned location of 2 exits from Materials 3848 | -9/Materials | Learned 4 Recycling zone layouts 3896 | -9/Materials | Loaded intel: 7 trap records 3935 | -9/Materials | Learned location of Zion (-7) 4004 | -9/Materials | First assault squad dispatched 5666 | -9/Materials | Sterilization system engaged 5666 | -9/Materials | Non-combat units ordered to evacuate 5766 | -9/Materials | Combat units ordered to evacuate 5797 | -9/Materials | Entered Mines 5802 | -9/Mines | Met a Derelict bent on vengeance 5813 | -9/Mines | A Derelict revealed a hidden shortcut to a safe place 5835 | -9/Mines | Received a Mining Laser from a helpful Derelict 5932 | -9/Mines | Discovered new exit (range 7) 5991 | -9/Mines | Found a damaged Exp. Sensor Array with a note attached 5995 | -9/Mines | Found Prototype Device 6081 | -9/Mines | Discovered new exit (range 8) 6116 | -9/Mines | Learned Materials security intel 6180 | -9/Mines | A weapon hastily lodged in a ceiling crevice suddenly fell to the ground 6431 | -9/Mines | Assisted by bots powering up and referring to "LRC-V3" 6596 | -9/Mines | Entered Materials 6596 | -8/Materials | Accompanied by 3 allies 6596 | -8/Materials | Evolved 2 slots: Propulsion x1, Utility x1 6597 | -8/Materials | Identified exit to Factory 6597 | -8/Materials | Identified exit to Storage 7428 | -8/Materials | Repaired Hacking Suite 7480 | -8/Materials | Repaired Hvy. Ion Engine 7542 | -8/Materials | Identified Exp. Sensor Array 7838 | -8/Materials | Build established: Hacker-Mutant 7935 | -8/Materials | Learned Storage terminal intel 7986 | -8/Materials | Learned location of 2 exits from Factory 8028 | -8/Materials | Learned Factory machine intel 8068 | -8/Materials | Lost 3 parts (2n1u) 8329 | -8/Materials | Repaired Broken Exp. Sensor Array? 8712 | -8/Materials | Build established: Mutant 8812 | -8/Materials | Core integrity fell below 50% 8826 | -8/Materials | Discovered exit to Factory (range 13) 9200 | -8/Materials | Build established: Scavenger-Mutant 9396 | -8/Materials | First assault squad dispatched 11741 | -8/Materials | Sterilization system engaged 11741 | -8/Materials | Non-combat units ordered to evacuate 11809 | -8/Materials | Entered Storage 11810 | -8/Storage | Loaded intel: 11 terminal locations 11864 | -8/Storage | Repaired Arm. Treads 11905 | -8/Storage | Repaired Shock Bomb Launcher? 12262 | -8/Storage | Repaired Hrd. Heavy Armor Plating 12367 | -8/Storage | Lost 3 parts (3n) 12434 | -8/Storage | Used back door to open Recycling access 12434 | -8/Storage | Discovered new exit (range 5) 12783 | -8/Storage | Discovered exit to Factory (range 6) 12836 | -8/Storage | Garrison activated, responded to threat 13110 | -8/Storage | Build established: Mutant 14609 | -8/Storage | First assault squad dispatched 16246 | -8/Storage | Core integrity fell below 20% 16682 | -8/Storage | Destroyed 9 combat bots 17046 | -8/Storage | High security lockdown imminent 17126 | -8/Storage | High security lockdown engaged 17185 | -8/Storage | Sterilization system engaged 17185 | -8/Storage | Non-combat units ordered to evacuate 17225 | -8/Storage | Destroyed 16 combat bots 17275 | -8/Storage | Entered Recycling 17276 | -8/Recycling | Identified exit to Scraptown 17756 | -8/Recycling | Discovered new exit (range 15) 17827 | -8/Recycling | Learned 2 Lower Caves zone layouts 17860 | -8/Recycling | Learned location of 1 exit from Recycling 17897 | -8/Recycling | Learned 2 Storage zone layouts 17902 | -8/Recycling | Learned Factory trap positions 17903 | -8/Recycling | Learned Factory interactive machine intel 17907 | -8/Recycling | Learned Storage garrison access intel 17922 | -8/Recycling | Learned location of Storage (-8) 17945 | -8/Recycling | Learned Storage security intel 17993 | -8/Recycling | Scanned before Scraplab entrance 18017 | -8/Recycling | Entered Scraplab 18286 | -8/Recycling | Entered Scraptown 18286 | -8/Scraptown | System corruption cleaned by C-Scrubber 18460 | -8/Scraptown | Heard Great Nut preacher, LISTEN AND RECITE! 18470 | -8/Scraptown | Visited Fellowship of the Rings 18482 | -8/Scraptown | Visited Assassins FH 18510 | -8/Scraptown | Visited Cyclists 18539 | -8/Scraptown | Visited The Evicted 18547 | -8/Scraptown | Visited Red Mages 18619 | -8/Scraptown | Visited Symbiants 18917 | -8/Scraptown | Discovered new exit (range 11) 19034 | -8/Scraptown | Visited TADAMA 19055 | -8/Scraptown | Visited UFD Registry 19055 | -8/Scraptown | Registered with UFD as "Thunderchaser" 19111 | -8/Scraptown | Entered Cyclist Reading Room 19197 | -8/Scraptown | Visited Analyses Database 19224 | -8/Scraptown | Visited Junk Repository 19275 | -8/Scraptown | Visited LU-1G1's Boring Crew 19400 | -8/Scraptown | Visited Infowarlord's Domain 19418 | -8/Scraptown | Visited Derelict Rescue Squad 19446 | -8/Scraptown | Visited Abandonware Association 19460 | -8/Scraptown | Learned abandonware demo "KABOOM.EXE" 19462 | -8/Scraptown | Learned abandonware demo "OVRCLOCK.EXE" 19483 | -8/Scraptown | Visited Cartography Club 19528 | -8/Scraptown | Received an X-ray algorithm 19544 | -8/Scraptown | Found Unknown Device 19544 | -8/Scraptown | Identified Scrap Suit 19599 | -8/Scraptown | Discovered new exit (range 3) 19639 | -8/Scraptown | Visited Supply Room 19661 | -8/Scraptown | Visited Science Guys 19704 | -8/Scraptown | Visited Modified Component R&D 19836 | -8/Scraptown | Found Surveybot 17 Chip 19877 | -8/Scraptown | Learned location of Warlord (-4) 19877 | -8/Scraptown | Learned 24 Factory zone layouts 19877 | -8/Scraptown | Learned 16 Factory zone layouts 19877 | -8/Scraptown | Learned 12 Research zone layouts 19877 | -8/Scraptown | Learned 8 Research zone layouts 19877 | -8/Scraptown | Learned 12 Lower Caves zone layouts 19877 | -8/Scraptown | Learned 4 Access zone layouts 19877 | -8/Scraptown | Learned 16 Lower Caves zone layouts 19877 | -8/Scraptown | Learned 20 Lower Caves zone layouts 19877 | -8/Scraptown | Learned 20 Upper Caves zone layouts 19877 | -8/Scraptown | Learned Storage emergency access door positions 19877 | -8/Scraptown | Learned location of 1 exit from Lower Caves 19877 | -8/Scraptown | Learned 4 Hub_04(d) zone layouts 19877 | -8/Scraptown | Learned location of 2 exits from Proximity Caves 19877 | -8/Scraptown | Learned location of 3 exits from Upper Caves 19919 | -8/Scraptown | Found Unknown Device 19919 | -8/Scraptown | Identified Deep Structural Scanner 20675 | -8/Scraptown | Warned about trapping Scraptown 20730 | -8/Scraptown | Found System Spiker 20746 | -8/Scraptown | Lost 5 allies 20969 | -8/Scraptown | System corruption cleaned by C-Scrubber 21041 | -8/Scraptown | Found DRS Beacon 21057 | -8/Scraptown | Identified exit to Factory 21073 | -8/Scraptown | Met Optimus 21073 | -8/Scraptown | Accepted into 0bPrime 21088 | -8/Scraptown | Entered Factory 21088 | -6/Factory | Evolved 4 slots: Power x1, Propulsion x2, Utility x1 21089 | -6/Factory | Identified exit to Lower Caves 21089 | -6/Factory | Identified exit to Extension 21090 | -6/Factory | Identified exit to Factory 21092 | -6/Factory | Loaded intel: 115 trap records 21093 | -6/Factory | Loaded intel: 312 machine locations 21094 | -6/Factory | Loaded intel: 55 interactive machine locations 21269 | -6/Factory | Build established: Sprinter 21394 | -6/Factory | Loaded intel: 8 recycling unit locations 21432 | -6/Factory | Learned location of Protoforge (-3) 21662 | -6/Factory | Fabricated Shock Maul? 21686 | -6/Factory | Repaired Hvy. Ion Engine 21845 | -6/Factory | Entered Extension 21925 | -6/Extension | Rescued A7 21942 | -6/Extension | Rescued a captive Derelict 22230 | -6/Extension | Energy Cycler disabled 22231 | -6/Extension | Rescued a captive Derelict 22233 | -6/Extension | Rescued a captive Derelict 22235 | -6/Extension | Rescued a captive Derelict 22241 | -6/Extension | Rescued a captive Derelict 22253 | -6/Extension | Loaded intel: 1 recycling unit location 22623 | -6/Extension | Spotted B-75 Beast 22627 | -6/Extension | Spotted B-75 Beast 22631 | -6/Extension | System corruption reached 10% 22634 | -6/Extension | Discovered exit to Factory (range 15) 22645 | -6/Extension | Disrupted transfer network 22648 | -6/Extension | Rewired B-75 Beast 22665 | -6/Extension | Destroyed B-75 Beast 22831 | -6/Extension | Lost 3 allies 23245 | -6/Extension | First assault squad dispatched 23262 | -6/Extension | Discovered new exit (range 15) 23262 | -6/Extension | Discovered exit to Factory (range 15) 23264 | -6/Extension | Identified exit to Cetus 23272 | -6/Extension | Entered Cetus 23272 | -6/Cetus | Accompanied by 1 ally (A7) 23277 | -6/Cetus | Acquired a Cetus Manufacturing Module code from A7 23279 | -6/Cetus | Spotted Cetus Guard 23279 | -6/Cetus | Spotted Cetus Guard 23282 | -6/Cetus | Spotted Cetus Guard 23282 | -6/Cetus | Spotted Cetus Guard 23297 | -6/Cetus | Lost 4 allies 23308 | -6/Cetus | Extracted ID and sensor layout for unrecognized location from A7's data core 23310 | -6/Cetus | System corruption reached 30% 23330 | -6/Cetus | Started Cetus Manufacturing Module 23334 | -6/Cetus | Discovered new exit (range 16) 23338 | -6/Cetus | Identified exit to Archives 23338 | -6/Cetus | Entered Archives 23340 | -6/Archives | Lost 6 parts (1p4n1u) 23424 | -6/Archives | Discovered new exit (range 14) 23429 | -6/Archives | Identified exit to Hub_04(d) 23429 | -6/Archives | Entered Hub_04(d) 23556 | -6/Hub_04(d) | Network Hub disabled 23580 | -6/Hub_04(d) | Spotted Lightning 23592 | -6/Hub_04(d) | Entered Factory 23592 | -5/Factory | Evolved 2 slots: Propulsion x1, Utility x1 23614 | -5/Factory | Scrapoids reinforcements arrived? 23618 | -5/Factory | Lost 3 allies 23622 | -5/Factory | Lost 5 parts (2p3n) 23713 | -5/Factory | Spotted B-75 Beast 23718 | -5/Factory | Allies destroyed B-75 Beast 23786 | -5/Factory | Loaded intel: 7 recycling unit locations 23802 | -5/Factory | Fabricated Cesium-ion Thruster (x2) 23857 | -5/Factory | Lost 4 allies 23870 | -5/Factory | Discovered new exit (range 15) 23872 | -5/Factory | Identified exit to Factory 23913 | -5/Factory | Sucked down chute 23913 | -5/Factory | Entered Waste 23925 | -5/Waste | Spotted C-40 Crusher 23926 | -5/Waste | Spotted C-40 Crusher 23926 | -5/Waste | Spotted C-40 Crusher 23929 | -5/Waste | Found Prototype Device 23929 | -5/Waste | Identified System Purifier 23944 | -5/Waste | Spotted C-40 Crusher 23944 | -5/Waste | Spotted C-40 Crusher 23957 | -5/Waste | Spotted C-40 Crusher 23963 | -5/Waste | Discovered new exit (range 11) 23967 | -5/Waste | Warlord forces began an assault 23983 | -5/Waste | 1 allies followed down the chute 23983 | -5/Waste | Identified exit to Factory 23988 | -5/Waste | Entered Factory 23989 | -5/Factory | Identified exit to DSF 23989 | -5/Factory | Entered DSF 24010 | -5/DSF | Additional patrols routed to DSF 24038 | -5/DSF | Discovered exit to Factory (range 16) 24048 | -5/DSF | Entered Factory 24048 | -4/Factory | Evolved 2 slots: Propulsion x2 24049 | -4/Factory | Identified exit to Research 24128 | -4/Factory | Fabricated Cesium-ion Thruster (x2) 24209 | -4/Factory | Sucked down chute 24209 | -4/Factory | Entered Waste 24210 | -4/Waste | Met a frightened Derelict 24216 | -4/Waste | Met Warlord forces unprepared to attack 24224 | -4/Waste | EMP discharged 24224 | -4/Waste | System corruption reached 10% 24238 | -4/Waste | Spotted C-40 Crusher 24239 | -4/Waste | Spotted C-40 Crusher 24241 | -4/Waste | Spotted C-40 Crusher 24241 | -4/Waste | Spotted C-40 Crusher 24242 | -4/Waste | Spotted C-40 Crusher 24252 | -4/Waste | Spotted C-40 Crusher 24255 | -4/Waste | Discovered new exit (range 13) 24266 | -4/Waste | Identified exit to Factory 24266 | -4/Waste | Entered Factory 24288 | -4/Factory | Loaded intel: 8 recycling unit locations 24333 | -4/Factory | Identified exit to DSF 24333 | -4/Factory | Entered DSF 24355 | -4/DSF | Additional patrols routed to DSF 24423 | -4/DSF | Discovered exit to Research (range 8) 24431 | -4/DSF | Entered Research 24431 | -3/Research | Evolved 2 slots: Propulsion x1, Utility x1 24432 | -3/Research | Identified exit to Research 24432 | -3/Research | Identified exit to Quarantine 24452 | -3/Research | Lost 15 parts (2p11n2u) 24557 | -3/Research | Loaded intel: 5 recycling unit locations 24645 | -3/Research | Spotted B-86 Titan 24754 | -3/Research | Found Prototype Hackware 24833 | -3/Research | Entered Quarantine 24869 | -3/Quarantine | Identified Exp. Hacking Suite 24890 | -3/Quarantine | Cryocooling Duct disabled 24895 | -3/Quarantine | Cryocooling Duct disabled 24905 | -3/Quarantine | Ambient heat levels rising (+20) 24905 | -3/Quarantine | Non-combat units ordered to evacuate 24907 | -3/Quarantine | Found Alien Artifact 24910 | -3/Quarantine | Ambient heat levels rising (+20) 24910 | -3/Quarantine | Combat units ordered to evacuate 24947 | -3/Quarantine | Identified Terrabomb 25010 | -3/Quarantine | Quarantine Guard activated 25037 | -3/Quarantine | Spotted Alpha 7 25073 | -3/Quarantine | Core integrity fell below 50% 25111 | -3/Quarantine | Spotted Quarantine Guard 25114 | -3/Quarantine | Spotted Quarantine Guard 25119 | -3/Quarantine | Spotted Quarantine Guard 25124 | -3/Quarantine | Spotted Quarantine Guard 25128 | -3/Quarantine | Core integrity fell below 20% 25129 | -3/Quarantine | Destroyed Alpha 7 25165 | -3/Quarantine | Lost 12 parts (1p8n2u1w) 25200 | -3/Quarantine | Crushed by falling debris 25242 | -3/Quarantine | Found Alien Artifact 25252 | -3/Quarantine | Spotted Quarantine Guard 25262 | -3/Quarantine | Spotted Quarantine Guard 25274 | -3/Quarantine | Found Alien Artifact 25297 | -3/Quarantine | Spotted Fortress 25298 | -3/Quarantine | Identified Hpw. Transdimensional Reconstructor 25298 | -3/Quarantine | Warped through subspace 25299 | -3/Quarantine | Lost 3 parts (2n1u) 25305 | -3/Quarantine | Destroyed by Quarantine Guard with Hypercooled Linear Accelerator Last Messages --------------- 25254_ Extracted schematic archive: A-15 Conveyor. 25255_ Acquired 27 matter. 25255_ Impulse Thruster Array destroyed. 25255_ Dropped Lrg. Storage Unit. 25256_ Dropped Hvy. Hardcell Cannon. 25257_ Acquired Terrabomb. 25259_ Acquired Huge Storage Unit. 25259_ Dark Matter Chamber disabled. 25259_ Impulse Thruster destroyed. 25260_ System corrupted: Matter fused (-7). 25268_ Exp. Cooling System destroyed. 25274_ Dropped Lgt. Antimatter Reactor. 25274_ Acquired Alien Artifact. 25292_ LA40X2EOJRHBELBGOK:Z:%JLYJDYXOLBVKNNTTH, 25298_ Identified Hpw. Transdimensional Reconstructor. 25298_ Warped through subspace. 25299_ Acquired 4 matter. 25301_ Extracted schematic archive: Imp. Matter Neutralizer. 25302_ Acquired 8 matter. 25303_ Extracted schematic archive: Helical Railgun. Map ----- +----------------------------------------------------+ | """ """ ####???????????????????#####???????????? | | """""""" ####??????????????????## ##????????????? | | ####???????????########"#####??????????? | | """ """ ###### # #??????????? | | """""""" ###### # #??????????? | | ###### # " #??????????? | | """ """ ###########+#### " T #??????????? | | """""" " # "" #??????????? | | # " """ #??????????? | | + """ #??????????? | | # " " ##########?? | | #### ############# ## " ##!!"""!!#?? | | ####+############# ## ##!"" ""!#?? | | # ###### ## ##"" ""#?? | | # ###### ## ##T * "#?? | | # ####?# ################ #?? | | # """ """ ####?# ####???????????# #?? | | + """""""" ######% #####??????????####+###### | | # ###### #####??????????# | | # ###### #####??????????# | | #################; #####??????????# | | ##########????# | | "#########????# ###### | | = ^" %##########????# #????? | | """ *#####;;######## #????? | | ########### G !@[%[[! Y %#????? | | ########### """ ] [[[/! #????? | | ########### " ![[| +????? | | ########### ^ ""]""" """ """ """ #????? | | ########### !!! """%""" """ """ """ #????? | | ########### !!! """ """ """ """ """ #????? | | ########### !!! ! """ """ """ """ """ #????? | | ########### """ """ """ """ """ #????? | | """ """ """ """ """ #????? | | """ """ """ """ """ +????? | | % ? #????? | | """ """ """%"?" "?? #????? | | ### ############## """ """ "?" "?" "?? #????? | | ### ##! + """ """ "?? ??? ??? #????? | | ### ## """"" # """ """ ""? ??? ??? #????? | | ### ##= """"" # """ """ """%??? ??????????? | | # ## """"" # """ """ """ ??? ??????????? | | # ## # """ """ """ """???????????? | | # ## """ """ # ??????????? | | # ## """T""" # ??????????? | | # ########"##### ??????????? | | # ####### = ######+### ??????????? | | + ####### # # ?????????????? | | # ####### #""" # ??????????????? | | # + !! #""" # ??????????????? | +----------------------------------------------------+ Best States ------------- Heat Dissipation 62 Energy Generation 39 Energy Capacity 490 Matter Stores 300 Matter Capacity 300 Sight Range 16 Robot Scan Range 20 Terrain Scan Range 16 Terrain Scan Density 10 Jamming Range 14 Additional Mass Support 16 Corruption Block 15 Armor Coverage 825 Core Shielding 20 Evasion (%) 73 Recoil Reduction 3 Offensive Hacking 16 Defensive Hacking 12 Authchip Count 2 Trap Extractor Capacity 6 Item Schematics ----------------- Huge Storage Unit | -10/Materials | Hacked Hcp. Storage Unit | -9/Materials | Scanalyzed Salvaging Laser | -9/Materials | Scanalyzed Imp. Flight Unit | -9/Materials | Scanalyzed Shock Bomb Launcher | -9/Materials | Scanalyzed Hvy. Hammer | -9/Materials | Extracted Hammer | -9/Materials | Extracted Hacking Suite | -8/Materials | Hacked Exp. Sensor Array | -8/Materials | Scanalyzed Mak. Sword | -8/Materials | Scanalyzed Hrd. Heavy Armor Plating | -8/Materials | Scanalyzed Hrd. Medium Armor Plating | -8/Materials | Scanalyzed Imp. Trap Extractor | -8/Materials | Scanalyzed Arm. Treads | -8/Materials | Scanalyzed Matter Filter | -8/Storage | Hacked Adv. Assault Cannon | -8/Storage | Hacked Hvy. Assault Cannon | -8/Storage | Hacked Cooling System | -8/Storage | Hacked Jamming Amplifier | -8/Storage | Hacked Adv. Transmission Jammer | -6/Factory | Hacked Adv. Melee Analysis Suite | -6/Factory | Extracted Reflective Plating | -6/Factory | Extracted Concussive RPG | -6/Factory | Extracted Imp. Core Shielding | -6/Factory | Extracted Machine Analyzer | -6/Factory | Extracted Cesium-ion Thruster | -6/Factory | Extracted Shock Maul | -6/Factory | Extracted Recoil Stabilizer | -6/Factory | Extracted Salvage Targeting Computer | -6/Factory | Extracted Imp. Hacking Suite | -6/Factory | Hacked Graviton Cannon | -4/Factory | Scanalyzed Seismic Detector | -3/Research | Extracted Hvy. Hardcell Cannon | -3/Quarantine | Scanalyzed Imp. Matter Compressor | -3/Quarantine | Archive Imp. Matter Neutralizer | -3/Quarantine | Archive Helical Railgun | -3/Quarantine | Archive Robot Schematics ------------------ M-28 Smith | -8/Recycling | Hacked M-30 Cleanser | -3/Quarantine | Archive A-15 Conveyor | -3/Quarantine | Archive Fabricated ------------ Shock Maul | x1 | -6/Factory | Authchip Cesium-ion Thruster | x2 | -5/Factory | Authchip Cesium-ion Thruster | x2 | -4/Factory | Authchip Repaired ---------- Hcp. Storage Unit | 69% | -9/Materials EM Pulse Cannon | 25% | -9/Materials Hacking Suite | 10% | -8/Materials Hvy. Ion Engine | 24% | -8/Materials Exp. Sensor Array | 62% | -8/Materials | Broken Arm. Treads | 13% | -8/Storage Shock Bomb Launcher | 62% | -8/Storage Hrd. Heavy Armor Plating | 58% | -8/Storage Hvy. Ion Engine | 42% | -6/Factory Alien Tech Used ----------------- High-powered Transdimensional Reconstructor Achievements -------------- None Challenges ------------ None Game ------ Seed SmartbombAntigravInitializer Manual? 0 Play Time 04:43:33 Cumulative 803.4 hours Start 2025.08.16 @ 23:48:53 End 2025.08.19 @ 01:21:20 Sessions 9 Manual Loads 0 Difficulty Rogue Special Mode None Game No. 308 Rogue 304 Adventurer 4 Explorer 0 Win Type - Total 14 Types 9/1/1/1/0/1/0/0/0/1 Lore% 94 Gallery% 90 Achievement% 87 Wizard Run 0 Options --------- Layout 0 ASCII 0 Keyboard 0 Movement Numpad Keybinds 0 Fullscreen 2 Font 18/CogNarrow Map View 76x50 Zoom Use 0% Tactical HUD 1 Map Filters NONE Filters NONE Steam 1 RUN: 188225df-feab-4178-a613-a6fbd44683b4